fUST/lending_fUST_20250504
["ID","MTS","AMOUNT","RATE_DAILY","PERIOD"]
[359809274,1746357044685,-400.0,0.00038904,15]
[359809276,1746357044694,-400.0,0.00038904,15]
[359809278,1746357044704,-300.0,0.00038904,15]
[359809280,1746357044712,-400.0,0.00038904,15]
[359809282,1746357044721,-400.0,0.00038904,15]
[359809284,1746357044731,-400.0,0.00038904,15]
[359809286,1746357044740,-400.0,0.00038904,15]
[359809288,1746357044750,-400.0,0.00038904,15]
[359809290,1746357044758,-400.0,0.00038904,15]
[359809292,1746357044768,-400.0,0.00038904,15]
[359809294,1746357044777,-400.0,0.00038904,15]
[359809296,1746357044786,-400.0,0.00038904,15]
[359809298,1746357044795,-400.0,0.00038904,15]
[359809300,1746357044805,-315.64,0.00038904,15]
[359809302,1746357044815,-400.0,0.00038904,15]
[359809304,1746357044825,-289.0,0.00038904,15]
[359809306,1746357044835,-400.0,0.00038904,15]
[359809308,1746357044845,-400.0,0.00038904,15]
[359809310,1746357044854,-153.8,0.00038904,15]
[359809312,1746357044864,-209.02900168,0.00038904,15]
[359809314,1746357044873,-400.0,0.00038904,15]
[359809316,1746357044882,-400.0,0.00038904,15]
[359809318,1746357044892,-400.0,0.00038904,15]
[359809320,1746357044901,-400.0,0.00038904,15]
[359809322,1746357044911,-400.0,0.00038904,15]
[359809324,1746357044920,-400.0,0.00038904,15]
[359809326,1746357044930,-400.0,0.00038904,15]
[359809328,1746357044939,-365.72,0.00038904,15]
[359809330,1746357044948,-400.0,0.00038904,15]
[359809332,1746357044958,-227.82775199,0.00038904,15]
[359809350,1746357045112,-172.17224801,0.00038904,15]
[359809352,1746357045122,-500.0,0.00038904,15]
[359809354,1746357045131,-500.0,0.00038904,15]
[359809356,1746357045141,-500.0,0.00038904,15]
[359809358,1746357045150,-500.0,0.00038904,15]
[359809360,1746357045159,-473.08,0.00038904,15]
[359809362,1746357045168,-500.0,0.00038904,15]
[359809363,1746357045180,-500.0,0.00038904,15]
[359809364,1746357045190,-500.0,0.00038904,15]
[359809365,1746357045199,-500.0,0.00038904,15]
[359809366,1746357045209,-500.0,0.00038904,15]
[359809367,1746357045218,-500.0,0.00038904,15]
[359809368,1746357045227,-500.0,0.00038904,15]
[359809370,1746357045236,-401.7421347,0.00038904,15]
[359809381,1746357045327,-400.0,0.00038904,15]
[359809383,1746357045337,-400.0,0.00038904,15]
[359809385,1746357045347,-400.0,0.00038904,15]
[359809387,1746357045357,-400.0,0.00038904,15]
[359809389,1746357045366,-400.0,0.00038904,15]
[359809391,1746357045376,-400.0,0.00038904,15]
[359809393,1746357045385,-491.82,0.00038904,15]
[359809395,1746357045394,-404.96892298,0.00038904,15]
[359809397,1746357045403,-400.0,0.00038904,15]
[359809399,1746357045412,-400.0,0.00038904,15]
[359809401,1746357045421,-391.63067594,0.00038904,15]
[359809403,1746357045430,-400.0,0.00038904,15]
[359809405,1746357045441,-400.0,0.00038904,15]
[359809408,1746357045452,-400.0,0.00038904,15]
[359809410,1746357045463,-400.0,0.00038904,15]
[359809412,1746357045472,-400.0,0.00038904,15]
[359809414,1746357045481,-477.55,0.00038904,15]
[359809416,1746357045490,-400.0,0.00038904,15]
[359809419,1746357045499,-400.0,0.00038904,15]
[359809423,1746357045509,-224.52,0.00038904,15]
[359809426,1746357045518,-400.0,0.00038904,15]
[359809428,1746357045527,-400.0,0.00038904,15]
[359809430,1746357045537,-400.0,0.00038904,15]
[359809432,1746357045546,-400.0,0.00038904,15]
[359809435,1746357045556,-400.0,0.00038904,15]
[359809437,1746357045565,-400.0,0.00038904,15]
[359809439,1746357045573,-406.22,0.00038904,15]
[359809441,1746357045583,-400.0,0.00038904,15]
[359809443,1746357045592,-400.0,0.00038904,15]
[359809445,1746357045601,-400.0,0.00038904,15]
[359809447,1746357045610,-400.0,0.00038904,15]
[359809449,1746357045620,-210.42,0.00038904,15]
[359809451,1746357045629,-486.46,0.00038904,15]
[359809453,1746357045638,-400.0,0.00038904,15]
[359809455,1746357045649,-316.52,0.00038904,15]
[359809457,1746357045658,-400.0,0.00038904,15]
[359809459,1746357045668,-503.83216367,0.00038904,15]
[359809461,1746357045677,-400.0,0.00038904,15]
[359809463,1746357045687,-400.0,0.00038904,15]
[359809465,1746357045696,-447.64,0.00038904,15]
[359809467,1746357045706,-500.0,0.00038904,15]
[359809469,1746357045715,-438.68,0.00038904,15]
[359809471,1746357045724,-400.88547253,0.00038904,15]
[359809473,1746357045733,-400.0,0.00038904,15]
[359809475,1746357045743,-400.0,0.00038904,15]
[359809477,1746357045752,-198.62,0.00038904,15]
[359809479,1746357045760,-400.0,0.00038904,15]
[359809481,1746357045769,-400.0,0.00038904,15]
[359809483,1746357045778,-400.0,0.00038904,15]
[359809485,1746357045787,-400.0,0.00038904,15]
[359809488,1746357045797,-400.0,0.00038904,15]
[359809490,1746357045806,-400.0,0.00038904,15]
[359809492,1746357045816,-400.0,0.00038904,15]
[359809494,1746357045824,-400.0,0.00038904,15]
[359809496,1746357045834,-400.0,0.00038904,15]
[359809498,1746357045843,-400.0,0.00038904,15]
[359809500,1746357045852,-262.14,0.00038904,15]
[359809502,1746357045862,-400.0,0.00038904,15]
[359809504,1746357045871,-400.0,0.00038904,15]
[359809506,1746357045880,-400.0,0.00038904,15]
[359809508,1746357045889,-400.0,0.00038904,15]
[359809510,1746357045898,-400.0,0.00038904,15]
[359809512,1746357045907,-400.0,0.00038904,15]
[359809514,1746357045916,-400.0,0.00038904,15]
[359809516,1746357045925,-400.0,0.00038904,15]
[359809518,1746357045935,-400.0,0.00038904,15]
[359809520,1746357045944,-400.0,0.00038904,15]
[359809522,1746357045953,-400.0,0.00038904,15]
[359809524,1746357045962,-400.0,0.00038904,15]
[359809526,1746357045972,-400.0,0.00038904,15]
[359809528,1746357045981,-400.0,0.00038904,15]
[359809530,1746357045990,-176.98,0.00038904,15]
[359809532,1746357045999,-400.0,0.00038904,15]
[359809534,1746357046008,-400.0,0.00038904,15]
[359809536,1746357046017,-274.3476924,0.00038904,15]
[359809538,1746357046026,-400.0,0.00038904,15]
[359809540,1746357046035,-400.0,0.00038904,15]
[359809542,1746357046044,-400.0,0.00038904,15]
[359809544,1746357046053,-400.0,0.00038904,15]
[359809546,1746357046062,-400.0,0.00038904,15]
[359809548,1746357046071,-400.0,0.00038904,15]
[359809550,1746357046080,-400.0,0.00038904,15]
[359809552,1746357046090,-400.0,0.00038904,15]
[359809554,1746357046099,-278.66457035,0.00038904,15]
[359809556,1746357046109,-400.0,0.00038904,15]
[359809558,1746357046118,-400.0,0.00038904,15]
[359809560,1746357046127,-400.0,0.00038904,15]
[359809562,1746357046136,-400.0,0.00038904,15]
[359809564,1746357046146,-400.0,0.00038904,15]
[359809566,1746357046156,-400.0,0.00038904,15]
[359809568,1746357046165,-400.0,0.00038904,15]
[359809570,1746357046174,-151.0,0.00038904,14]
[359809572,1746357046183,-400.0,0.00038904,15]
[359809574,1746357046192,-400.0,0.00038904,15]
[359809576,1746357046202,-400.0,0.00038904,15]
[359809578,1746357046211,-400.0,0.00038904,15]
[359809580,1746357046219,-400.0,0.00038904,15]
[359809582,1746357046228,-400.0,0.00038904,15]
[359809584,1746357046238,-400.0,0.00038904,15]
[359809586,1746357046247,-292.04,0.00038904,15]
[359809588,1746357046256,-400.0,0.00038904,15]
[359809590,1746357046265,-400.0,0.00038904,15]
[359809592,1746357046274,-400.0,0.00038904,15]
[359809594,1746357046286,-400.0,0.00038904,15]
[359809596,1746357046295,-400.0,0.00038904,15]
[359809598,1746357046304,-400.0,0.00038904,15]
[359809600,1746357046313,-415.83,0.00038904,15]
[359809602,1746357046325,-400.0,0.00038904,15]
[359809604,1746357046334,-400.0,0.00038904,15]
[359809606,1746357046343,-400.0,0.00038904,15]
[359809608,1746357046353,-400.0,0.00038904,15]
[359809610,1746357046366,-400.0,0.00038904,15]
[359809612,1746357046375,-400.0,0.00038904,15]
[359809614,1746357046385,-400.0,0.00038904,15]
[359809616,1746357046394,-400.0,0.00038904,15]
[359809618,1746357046403,-400.0,0.00038904,15]
[359809620,1746357046412,-400.0,0.00038904,15]
[359809622,1746357046421,-400.0,0.00038904,15]
[359809624,1746357046430,-400.0,0.00038904,15]
[359809626,1746357046439,-400.0,0.00038904,15]
[359809628,1746357046449,-400.0,0.00038904,15]
[359809630,1746357046458,-400.0,0.00038904,15]
[359809632,1746357046467,-400.0,0.00038904,15]
[359809634,1746357046476,-400.0,0.00038904,15]
[359809636,1746357046485,-307.42,0.00038904,15]
[359809638,1746357046494,-490.6,0.00038904,15]
[359809640,1746357046503,-400.0,0.00038904,15]
[359809642,1746357046513,-400.0,0.00038904,15]
[359809644,1746357046522,-400.0,0.00038904,15]
[359809646,1746357046531,-400.0,0.00038904,15]
[359809648,1746357046540,-400.0,0.00038904,15]
[359809650,1746357046549,-400.0,0.00038904,15]
[359809652,1746357046558,-309.14,0.00038904,15]
[359809654,1746357046567,-400.0,0.00038904,15]
[359809656,1746357046576,-400.0,0.00038904,15]
[359809658,1746357046585,-402.99672188,0.00038904,15]
[359809660,1746357046594,-400.0,0.00038904,15]
[359809662,1746357046603,-400.0,0.00038904,15]
[359809664,1746357046613,-400.0,0.00038904,15]
[359809666,1746357046622,-400.0,0.00038904,15]
[359809668,1746357046631,-400.0,0.00038904,15]
[359809670,1746357046640,-400.0,0.00038904,15]
[359809672,1746357046650,-273.0,0.00038904,15]
[359809674,1746357046659,-151.0,0.00038904,14]
[359809676,1746357046668,-400.0,0.00038904,15]
[359809678,1746357046677,-400.0,0.00038904,15]
[359809680,1746357046686,-400.0,0.00038904,15]
[359809682,1746357046695,-431.40236022,0.00038904,15]
[359809684,1746357046705,-400.0,0.00038904,15]
[359809686,1746357046715,-400.0,0.00038904,15]
[359809688,1746357046724,-400.0,0.00038904,15]
[359809690,1746357046733,-400.0,0.00038904,15]
[359809692,1746357046742,-400.0,0.00038904,15]
[359809694,1746357046751,-400.0,0.00038904,15]
[359809696,1746357046760,-286.96,0.00038904,15]
[359809698,1746357046769,-400.0,0.00038904,15]
[359809700,1746357046780,-400.0,0.00038904,15]
[359809702,1746357046790,-400.0,0.00038904,15]
[359809705,1746357046800,-438.8221612,0.00038904,15]
[359809707,1746357046809,-500.0,0.00038904,15]
[359809709,1746357046818,-400.0,0.00038904,15]
[359809711,1746357046827,-400.0,0.00038904,15]
[359809713,1746357046836,-229.20978738,0.00038904,15]
[359809715,1746357046846,-400.0,0.00038904,15]
[359809717,1746357046855,-400.0,0.00038904,15]
[359809719,1746357046864,-400.0,0.00038904,15]
[359809721,1746357046873,-400.0,0.00038904,15]
[359809723,1746357046881,-400.0,0.00038904,15]
[359809725,1746357046890,-541.78,0.00038904,15]
[359809727,1746357046899,-400.0,0.00038904,15]
[359809729,1746357046908,-400.0,0.00038904,15]
[359809731,1746357046918,-502.1626567,0.00038904,15]
[359809733,1746357046927,-400.0,0.00038904,15]
[359809735,1746357046936,-400.0,0.00038904,15]
[359809736,1746357046945,-434.81811531,0.00038904,15]
[359809738,1746357046954,-400.0,0.00038904,15]
[359809740,1746357046963,-151.0,0.00038904,14]
[359809742,1746357046972,-400.0,0.00038904,15]
[359809744,1746357046981,-400.0,0.00038904,15]
[359809746,1746357046990,-400.0,0.00038904,15]
[359809748,1746357046999,-400.0,0.00038904,15]
[359809750,1746357047008,-223.14,0.00038904,15]
[359809752,1746357047017,-400.0,0.00038904,15]
[359809754,1746357047026,-400.0,0.00038904,15]
[359809756,1746357047035,-400.0,0.00038904,15]
[359809758,1746357047045,-400.0,0.00038904,15]
[359809760,1746357047054,-400.0,0.00038904,15]
[359809762,1746357047064,-400.0,0.00038904,15]
[359809764,1746357047073,-400.0,0.00038904,15]
[359809766,1746357047082,-400.0,0.00038904,15]
[359809768,1746357047092,-538.52,0.00038904,15]
[359809770,1746357047101,-400.0,0.00038904,15]
[359809772,1746357047111,-277.61632363,0.00038904,15]
[359809774,1746357047121,-400.0,0.00038904,15]
[359809776,1746357047131,-400.0,0.00038904,15]
[359809786,1746357047217,-400.0,0.00038904,15]
[359809788,1746357047227,-400.0,0.00038904,15]
[359809790,1746357047237,-400.0,0.00038904,15]
[359809792,1746357047246,-400.0,0.00038904,15]
[359809794,1746357047256,-508.96571187,0.00038904,15]
[359809796,1746357047265,-400.0,0.00038904,15]
[359809798,1746357047275,-400.0,0.00038904,15]
[359809800,1746357047285,-400.0,0.00038904,15]
[359809802,1746357047295,-400.0,0.00038904,15]
[359809804,1746357047307,-400.0,0.00038904,15]
[359809806,1746357047318,-369.48136631,0.00038904,15]
[359809811,1746357047357,-30.51863369,0.00038904,15]
[359809813,1746357047366,-400.0,0.00038904,15]
[359809815,1746357047378,-400.0,0.00038904,15]
[359809817,1746357047389,-400.0,0.00038904,15]
[359809819,1746357047398,-400.0,0.00038904,15]
[359809821,1746357047408,-271.9,0.00038904,15]
[359809823,1746357047417,-400.0,0.00038904,15]
[359809825,1746357047426,-400.0,0.00038904,15]
[359809827,1746357047436,-400.0,0.00038904,15]
[359809830,1746357047446,-524.2,0.00038904,15]
[359809832,1746357047456,-400.0,0.00038904,15]
[359809834,1746357047466,-420.91,0.00038904,15]
[359809836,1746357047476,-53.03351985,0.00038904,15]
[359809838,1746357047489,-346.96648015,0.00038904,15]
[359809840,1746357047498,-400.0,0.00038904,15]
[359809842,1746357047508,-400.0,0.00038904,15]
[359809844,1746357047517,-400.0,0.00038904,15]
[359809846,1746357047526,-400.0,0.00038904,15]
[359809848,1746357047535,-400.0,0.00038904,15]
[359809850,1746357047545,-400.0,0.00038904,15]
[359809852,1746357047554,-400.0,0.00038904,15]
[359809854,1746357047563,-400.0,0.00038904,15]
[359809856,1746357047573,-400.0,0.00038904,15]
[359809858,1746357047582,-202.84,0.00038904,15]
[359809860,1746357047591,-400.0,0.00038904,15]
[359809862,1746357047600,-400.0,0.00038904,15]
[359809864,1746357047610,-400.0,0.00038904,15]
[359809866,1746357047619,-400.0,0.00038904,15]
[359809869,1746357047630,-221.5,0.00038904,15]
[359809871,1746357047639,-302.32998359,0.00038904,15]
[359809873,1746357047648,-212.02048472,0.00038904,15]
[359809875,1746357047658,-400.0,0.00038904,15]
[359809876,1746357047667,-400.0,0.00038904,15]
[359809878,1746357047676,-400.0,0.00038904,15]
[359809880,1746357047685,-429.63944586,0.00038904,15]
[359809882,1746357047695,-503.09040811,0.00038904,15]
[359809884,1746357047704,-450.7,0.00038904,15]
[359809886,1746357047713,-400.0,0.00038904,15]
[359809889,1746357047722,-400.0,0.00038904,15]
[359809890,1746357047732,-400.0,0.00038904,15]
[359809892,1746357047741,-400.0,0.00038904,15]
[359809894,1746357047751,-400.0,0.00038904,15]
[359809896,1746357047760,-400.0,0.00038904,15]
[359809899,1746357047770,-400.0,0.00038904,15]
[359809901,1746357047780,-400.0,0.00038904,15]
[359809903,1746357047790,-400.0,0.00038904,15]
[359809905,1746357047799,-400.0,0.00038904,15]
[359809907,1746357047809,-400.0,0.00038904,15]
[359809909,1746357047819,-400.0,0.00038904,15]
[359809911,1746357047829,-414.58,0.00038904,15]
[359809913,1746357047839,-400.0,0.00038904,15]
[359809915,1746357047850,-400.0,0.00038904,15]
[359809917,1746357047861,-415.17530621,0.00038904,15]
[359809919,1746357047870,-400.0,0.00038904,15]
[359809921,1746357047879,-400.0,0.00038904,15]
[359809923,1746357047889,-400.0,0.00038904,15]
[359809925,1746357047899,-400.0,0.00038904,15]
[359809927,1746357047910,-400.0,0.00038904,15]
[359809929,1746357047919,-400.0,0.00038904,15]
[359809931,1746357047929,-400.0,0.00038904,15]
[359809933,1746357047939,-400.0,0.00038904,15]
[359809935,1746357047949,-400.0,0.00038904,15]
[359809937,1746357047959,-200.0,0.00038904,15]
[359809939,1746357047969,-508.99705792,0.00038904,15]
[359809941,1746357047979,-243.36903556,0.00038904,15]
[359809943,1746357047988,-400.0,0.00038904,15]
[359809945,1746357047998,-400.0,0.00038904,15]
[359809947,1746357048007,-400.0,0.00038904,15]
[359809949,1746357048017,-364.53,0.00038904,15]
[359809951,1746357048026,-400.0,0.00038904,15]
[359809953,1746357048036,-400.0,0.00038904,15]
[359809955,1746357048045,-400.0,0.00038904,15]
[359809957,1746357048055,-400.0,0.00038904,15]
[359809959,1746357048064,-400.0,0.00038904,15]
[359809961,1746357048075,-400.0,0.00038904,15]
[359809963,1746357048084,-400.0,0.00038904,15]
[359809965,1746357048094,-400.0,0.00038904,15]
[359809967,1746357048104,-400.0,0.00038904,15]
[359809969,1746357048114,-509.73456995,0.00038904,15]
[359809971,1746357048123,-395.07040215,0.00038904,15]
[359809973,1746357048133,-500.0,0.00038904,15]
[359809975,1746357048142,-500.0,0.00038904,15]
[359809977,1746357048152,-400.0,0.00038904,5]
[359809979,1746357048163,-400.0,0.00038904,15]
[359809981,1746357048173,-400.0,0.00038904,5]
[359809983,1746357048183,-400.0,0.00038904,15]
[359809985,1746357048192,-400.0,0.00038904,5]
[359809986,1746357048201,-400.0,0.00038904,15]
[359809988,1746357048212,-400.0,0.00038904,15]
[359809990,1746357048222,-481.0,0.00038904,15]
[359809992,1746357048232,-400.0,0.00038904,15]
[359809994,1746357048242,-461.26404211,0.00038904,15]
[359809996,1746357048251,-400.0,0.00038904,15]
[359809998,1746357048261,-400.0,0.00038904,15]
[359810000,1746357048271,-400.0,0.00038904,15]
[359810002,1746357048281,-267.0,0.00038904,15]
[359810004,1746357048290,-400.0,0.00038904,15]
[359810006,1746357048303,-400.0,0.00038904,15]
[359810008,1746357048313,-400.0,0.00038904,15]
[359810010,1746357048324,-400.0,0.00038904,15]
[359810012,1746357048334,-400.0,0.00038904,15]
[359810014,1746357048345,-400.0,0.00038904,15]
[359810016,1746357048356,-373.85,0.00038904,15]
[359810018,1746357048365,-400.0,0.00038904,15]
[359810020,1746357048377,-206.67085735,0.00038904,15]
[359810022,1746357048386,-400.0,0.00038904,15]
[359810024,1746357048396,-400.0,0.00038904,15]
[359810026,1746357048407,-203.98,0.00038904,15]
[359810028,1746357048416,-400.0,0.00038904,15]
[359810030,1746357048426,-400.0,0.00038904,15]
[359810032,1746357048435,-400.0,0.00038904,15]
[359810033,1746357048445,-400.0,0.00038904,15]
[359810036,1746357048455,-400.0,0.00038904,15]
[359810037,1746357048465,-300.0,0.00038904,15]
[359810039,1746357048475,-300.0,0.00038904,15]
[359810041,1746357048486,-302.45733331,0.00038904,15]
[359810044,1746357048496,-400.0,0.00038904,15]
[359810045,1746357048506,-400.0,0.00038904,15]
[359810047,1746357048516,-216.54283059,0.00038904,15]
[359810049,1746357048525,-400.0,0.00038904,15]
[359810051,1746357048535,-400.0,0.00038904,15]
[359810053,1746357048545,-400.0,0.00038904,15]
[359810055,1746357048555,-47.65149098,0.00038904,15]
[359810073,1746357048720,-352.34850902,0.00038904,15]
[359810075,1746357048730,-302.5583881,0.00038904,15]
[359810077,1746357048740,-248.06976556,0.00038904,15]
[359810080,1746357048752,-151.93023444,0.00038904,15]
[359810082,1746357048762,-400.0,0.00038904,15]
[359810083,1746357048771,-328.06976456,0.00038904,15]
[359810709,1746357934226,-1031.47948317,0.00025205,2]
[359810711,1746357948079,-267.34876978,0.00025205,2]
[359810715,1746358029115,-150.0,0.00023105,2]
[359810716,1746358029135,-87.82459577,0.00025205,2]
[359810717,1746358029154,-64.98317632,0.00027,3]
[359810721,1746358035090,-248.75598787,0.00027,3]
[359810722,1746358035110,-626.115207,0.00027397,2]
[359810723,1746358035131,-1200.0,0.00027476,2]
[359810724,1746358035152,-300.0,0.00027476,2]
[359810725,1746358035172,-300.0,0.00027476,2]
[359810726,1746358035192,-3777.5006308,0.00027477,2]
[359810727,1746358035212,-192.692525,0.0002773,2]
[359810728,1746358035233,-150.0,0.00028105,2]
[359810729,1746358035252,-300.0,0.00029599,2]
[359810730,1746358035272,-300.0,0.00029599,2]
[359810731,1746358035292,-205.36650438,0.00029599,2]
[359810732,1746358037366,-94.63349562,0.00029599,2]
[359810733,1746358037385,-502.3526664,0.000296,5]
[359810734,1746358037405,-202.00391579,0.00029649,2]
[359810735,1746358037425,-420.0,0.0002969,2]
[359810736,1746358037444,-420.0,0.0002969,2]
[359810737,1746358037466,-500.0,0.00029747,2]
[359810738,1746358037497,-341.02822386,0.00029747,2]
[359811009,1746358051107,-211.94850064,0.00029747,2]
[359811115,1746358052317,-3668.09131824,0.00029747,2]
[359812101,1746358073024,-285.47618217,0.00019706,2]
[359812506,1746358078164,-151.0,0.00019706,2]
[359812671,1746358083072,-214.52381783,0.00019706,2]
[359812672,1746358086235,-151.0,0.00019706,2]
[359812673,1746358090587,-262.4045752,0.00019706,2]
[359812674,1746358092909,651.0,0.00021,10]
[359812675,1746358093893,-167.65152424,0.00019706,2]
[359812676,1746358097531,-342.97824828,0.00019706,2]
[359812677,1746358100411,-157.02175172,0.00019706,2]
[359812678,1746358103844,-180.37865273,0.00019706,2]
[359812679,1746358104256,-527.60563202,0.00019706,2]
[359812680,1746358115993,-160.0,0.00022,2]
[359812683,1746358119310,-309.48977497,0.00022,2]
[359812684,1746358123216,-500.0,0.00022,2]
[359812685,1746358126586,-351.62133063,0.00022,2]
[359812687,1746358147095,-172.03361925,0.00024953,10]
[359812746,1746358203324,150.39436798,0.00019706,2]
[359812772,1746358203887,-164.67236682,0.00019706,2]
[359812959,1746358208475,-279.4705777,0.00019706,2]
[359813444,1746358220989,-567.25617491,0.00019706,2]
[359813562,1746358223986,-38.20651259,0.00019706,2]
[359813896,1746358232066,-6.41069129,0.00024953,10]
[359813897,1746358232076,-159.13584982,0.000284,2]
[359813899,1746358232086,-1200.0,0.00028499,2]
[359813900,1746358232095,-300.0,0.00028499,2]
[359813902,1746358232105,-7000.66922504,0.000285,3]
[359813903,1746358232114,-473.39988775,0.00029746,2]
[359813904,1746358232124,-544.0577353,0.00029746,2]
[359813906,1746358232134,-500.0,0.00029746,2]
[359813907,1746358232143,-500.0,0.00029746,2]
[359813908,1746358232153,-485.4542971,0.00029746,2]
[359813910,1746358232162,-500.0,0.00029746,2]
[359813911,1746358232171,-500.0,0.00029746,2]
[359813912,1746358232181,-500.0,0.00029746,2]
[359813914,1746358232190,-334.14042293,0.00029746,2]
[359813915,1746358232199,-504.95462483,0.00029746,2]
[359813917,1746358232209,-500.0,0.00029746,2]
[359813918,1746358232219,-500.0,0.00029746,2]
[359813920,1746358232227,-500.0,0.00029746,2]
[359813922,1746358232237,-500.0,0.00029746,2]
[359813924,1746358232246,-500.0,0.00029746,2]
[359813928,1746358232256,-500.0,0.00029746,2]
[359813932,1746358232266,-500.0,0.00029746,2]
[359813935,1746358232276,-500.0,0.00029746,2]
[359813937,1746358232286,-500.0,0.00029746,2]
[359813939,1746358232295,-500.0,0.00029746,2]
[359813942,1746358232304,-500.0,0.00029746,2]
[359813944,1746358232314,-500.0,0.00029746,2]
[359813947,1746358232323,-11039.6191001,0.00029749,2]
[359813949,1746358232332,-212.02366815,0.000299,21]
[359813951,1746358232342,-286.84745459,0.0003011,10]
[359813954,1746358232352,-420.0,0.00030763,2]
[359813956,1746358232361,-1200.0,0.00030896,2]
[359813959,1746358232370,-1077.73916419,0.00031367,2]
[359813961,1746358232381,-500.0,0.00031781,2]
[359813963,1746358232391,-240.5,0.00032256,30]
[359813965,1746358232400,-212.02366811,0.000324,26]
[359813966,1746358232410,-160.0,0.00032671,2]
[359813968,1746358232419,-327.71739443,0.00033,2]
[359813970,1746358232429,-626.115207,0.00033165,2]
[359813972,1746358232438,-1000.0,0.000344,5]
[359813975,1746358232448,-259.737905,0.00034525,2]
[359813976,1746358232457,-212.02366811,0.000349,31]
[359813978,1746358232466,-1130.6696222,0.00035523,2]
[359813979,1746358232475,-2244.0,0.00036094,2]
[359813980,1746358232485,-707.0,0.00036094,2]
[359813982,1746358232494,-403.0,0.00036094,2]
[359813983,1746358232503,-5000.0,0.00036367,2]
[359813985,1746358232512,-508.91769909,0.00036802,2]
[359813986,1746358232521,-33600.84974951,0.00037,14]
[359813987,1746358232531,-282.18,0.000373,2]
[359813989,1746358232540,-212.02366811,0.000374,36]
[359813990,1746358232550,-1093.1285883,0.00037419,4]
[359813992,1746358232560,-10495.29647988,0.000378,30]
[359813997,1746358232706,-695.00504384,0.000378,30]
[359813999,1746358232722,-9934.05267977,0.000378,30]
[359814000,1746358232731,-784.19722799,0.00038,30]
[359814002,1746358232740,-1160.639999,0.00038,2]
[359814003,1746358232750,-915.08863207,0.00038505,3]
[359814004,1746358232759,-35850.75305929,0.00038515,2]
[359814006,1746358232768,-915.08863207,0.00038884,3]
[359814007,1746358232778,-16471.5953773,0.00038894,3]
[359814008,1746358232787,-160.78285354,0.00038903,30]
[359814010,1746358232796,-151.0,0.00038903,15]
[359814011,1746358232805,-214.8,0.00038903,15]
[359814012,1746358232814,-19151.15769225,0.00038904,2]
[359814014,1746358232823,-247.00387548,0.00038904,3]
[359814015,1746358232832,-151.0,0.00038904,14]
[359814016,1746358232841,-151.0,0.00038904,14]
[359814018,1746358232850,-151.0,0.00038904,14]
[359814019,1746358232860,-151.0,0.00038904,14]
[359814020,1746358232869,-151.0,0.00038904,14]
[359814022,1746358232878,-400.0,0.00038904,15]
[359814023,1746358232887,-400.0,0.00038904,15]
[359814024,1746358232897,-400.0,0.00038904,15]
[359814026,1746358232906,-500.0,0.00038904,15]